[Event "Early-Titled-Tuesday-Blitz-July-09-2024"]
[Site "Chess.com"]
[Date "2024.07.09"]
[Round "5"]
[White "tusplingher"]
[Black "kleinebeer98"]
[Result "1/2-1/2"]
[WhiteElo "2694"]
[BlackElo "2930"]
[TimeControl "180+1"]
[EndTime "8:58:13 PDT"]
[Termination "Game drawn by repetition"]

1. e4 {[%clk 0:03:00.9]} 1... e5 {[%clk 0:02:59.7]} 2. Nf3 {[%clk 0:03:00.9]}
2... Nc6 {[%clk 0:03:00.1]} 3. Nc3 {[%clk 0:03:01.4]} 3... Nf6 {[%clk
0:02:59.5]} 4. d4 {[%clk 0:03:01.4]} 4... exd4 {[%clk 0:03:00.4]} 5. Nxd4 {[%clk
0:03:01.3]} 5... Nxe4 {[%clk 0:03:01.3]} 6. Nxe4 {[%clk 0:03:00.3]} 6... Qe7
{[%clk 0:03:01.3]} 7. Qd3 {[%clk 0:02:31]} 7... d5 {[%clk 0:02:59.9]} 8. Nxc6
{[%clk 0:02:30.6]} 8... bxc6 {[%clk 0:03:00.8]} 9. f3 {[%clk 0:02:29.7]} 9...
dxe4 {[%clk 0:02:47.8]} 10. Qxe4 {[%clk 0:02:28.6]} 10... Qxe4+ {[%clk
0:02:46.5]} 11. fxe4 {[%clk 0:02:28.4]} 11... Be6 {[%clk 0:02:39.5]} 12. Bd3
{[%clk 0:02:27.3]} 12... Bc5 {[%clk 0:02:33.3]} 13. h3 {[%clk 0:02:22.3]} 13...
Ke7 {[%clk 0:02:25.7]} 14. Ke2 {[%clk 0:02:22]} 14... Rab8 {[%clk 0:02:22.7]}
15. b3 {[%clk 0:02:14.3]} 15... Bd4 {[%clk 0:02:13.9]} 16. Ba3+ {[%clk
0:02:07.3]} 16... Kf6 {[%clk 0:02:10.6]} 17. Raf1+ {[%clk 0:02:04.9]} 17... Ke5
{[%clk 0:02:11.2]} 18. Bc1 {[%clk 0:02:02.6]} 18... Kd6 {[%clk 0:02:06.9]} 19.
Bf4+ {[%clk 0:01:52.3]} 19... Be5 {[%clk 0:02:04.1]} 20. Bxe5+ {[%clk
0:01:47.5]} 20... Kxe5 {[%clk 0:02:05]} 21. Rf2 {[%clk 0:01:45.5]} 21... c5
{[%clk 0:02:04.1]} 22. Rhf1 {[%clk 0:01:44.9]} 22... f6 {[%clk 0:02:03.5]} 23.
Ke3 {[%clk 0:01:21.2]} 23... Rhd8 {[%clk 0:01:59.6]} 24. Rf3 {[%clk 0:01:13.7]}
24... a5 {[%clk 0:01:58]} 25. Rg3 {[%clk 0:01:11.6]} 25... g5 {[%clk 0:01:50.7]}
26. Rgf3 {[%clk 0:01:10.8]} 26... Rf8 {[%clk 0:01:51]} 27. Bc4 {[%clk
0:01:07.9]} 27... Rb4 {[%clk 0:01:35.8]} 28. a3 {[%clk 0:00:54.3]} 28... Bxc4
{[%clk 0:01:35.5]} 29. Rf5+ {[%clk 0:00:47.3]} 29... Ke6 {[%clk 0:01:35.1]} 30.
R1f2 {[%clk 0:00:41.3]} 30... Rb6 {[%clk 0:00:59.5]} 31. bxc4 {[%clk 0:00:40.3]}
31... Rb1 {[%clk 0:00:48.1]} 32. Rxc5 {[%clk 0:00:37.8]} 32... Re1+ {[%clk
0:00:48]} 33. Kf3 {[%clk 0:00:36.9]} 33... a4 {[%clk 0:00:42.1]} 34. Rxc7 {[%clk
0:00:35.1]} 34... f5 {[%clk 0:00:39.9]} 35. Kg3 {[%clk 0:00:25.1]} 35... f4+
{[%clk 0:00:31.6]} 36. Kg4 {[%clk 0:00:20.9]} 36... Rxe4 {[%clk 0:00:31.6]} 37.
Rf3 {[%clk 0:00:18.1]} 37... Re2 {[%clk 0:00:28.6]} 38. g3 {[%clk 0:00:17.5]}
38... Rg2 {[%clk 0:00:25.7]} 39. Rxh7 {[%clk 0:00:16.3]} 39... Rc8 {[%clk
0:00:24.6]} 40. Rh6+ {[%clk 0:00:15.2]} 40... Ke5 {[%clk 0:00:22.2]} 41. Rg6
{[%clk 0:00:15.7]} 41... Rxc4 {[%clk 0:00:20.4]} 42. Rxg5+ {[%clk 0:00:16]}
42... Ke6 {[%clk 0:00:19.3]} 43. Rxf4 {[%clk 0:00:16.3]} 43... Rc3 {[%clk
0:00:18]} 44. Kh4 {[%clk 0:00:15.3]} 44... Rxa3 {[%clk 0:00:17.3]} 45. Rg6+
{[%clk 0:00:14.7]} 45... Ke5 {[%clk 0:00:17.1]} 46. Rg5+ {[%clk 0:00:15]} 46...
Ke6 {[%clk 0:00:17.1]} 47. Rg6+ {[%clk 0:00:14.4]} 47... Ke7 {[%clk 0:00:17.8]}
48. Rg7+ {[%clk 0:00:14]} 48... Ke6 {[%clk 0:00:17.7]} 49. Rg6+ {[%clk
0:00:14.5]} 1/2-1/2

[Event "Early-Titled-Tuesday-Blitz-July-09-2024"]
[Site "Chess.com"]
[Date "2024.07.09"]
[Round "5"]
[White "Viacheslav92"]
[Black "mind1mover"]
[Result "0-1"]
[WhiteElo "2582"]
[BlackElo "2815"]
[TimeControl "180+1"]
[EndTime "8:58:13 PDT"]
[Termination "mind1mover won on time"]

1. d4 {[%clk 0:03:00.9]} 1... d5 {[%clk 0:02:58.5]} 2. Bg5 {[%clk 0:03:00.9]}
2... Nc6 {[%clk 0:02:55.7]} 3. e3 {[%clk 0:02:59.9]} 3... f6 {[%clk 0:02:52.1]}
4. Bh4 {[%clk 0:02:59.2]} 4... h5 {[%clk 0:02:48.6]} 5. h3 {[%clk 0:02:55.3]}
5... Bf5 {[%clk 0:02:46.2]} 6. Bd3 {[%clk 0:02:49.7]} 6... Qd7 {[%clk
0:02:45.1]} 7. Bg3 {[%clk 0:02:46.6]} 7... O-O-O {[%clk 0:02:45.2]} 8. Bxf5
{[%clk 0:02:35.7]} 8... Qxf5 {[%clk 0:02:45.4]} 9. Qd3 {[%clk 0:02:35.6]} 9...
Qxd3 {[%clk 0:02:39]} 10. cxd3 {[%clk 0:02:36.5]} 10... e5 {[%clk 0:02:39.8]}
11. dxe5 {[%clk 0:02:32.7]} 11... fxe5 {[%clk 0:02:40.7]} 12. Nc3 {[%clk
0:01:50.8]} 12... Nh6 {[%clk 0:02:26.9]} 13. Nf3 {[%clk 0:01:46.5]} 13... Nf7
{[%clk 0:02:23.6]} 14. O-O-O {[%clk 0:01:38.1]} 14... Bb4 {[%clk 0:02:20.8]} 15.
a3 {[%clk 0:01:31.1]} 15... Bxc3 {[%clk 0:02:17.3]} 16. bxc3 {[%clk 0:01:32]}
16... Rhe8 {[%clk 0:02:15.7]} 17. d4 {[%clk 0:01:27.4]} 17... exd4 {[%clk
0:02:03.7]} 18. cxd4 {[%clk 0:01:28.3]} 18... Na5 {[%clk 0:02:03.9]} 19. Ne5
{[%clk 0:01:18.5]} 19... Nxe5 {[%clk 0:02:01.7]} 20. Bxe5 {[%clk 0:01:19.4]}
20... Nc4 {[%clk 0:01:57.2]} 21. Bxg7 {[%clk 0:00:51.2]} 21... Rg8 {[%clk
0:01:56.9]} 22. Bf6 {[%clk 0:00:51.6]} 22... Rdf8 {[%clk 0:01:56.7]} 23. Bh4
{[%clk 0:00:51.2]} 23... Rxg2 {[%clk 0:01:47.1]} 24. a4 {[%clk 0:00:46.9]} 24...
Rg6 {[%clk 0:01:44.8]} 25. Kc2 {[%clk 0:00:40.9]} 25... Rb6 {[%clk 0:01:39.3]}
26. Kc3 {[%clk 0:00:37.7]} 26... Ra6 {[%clk 0:01:35.2]} 27. Ra1 {[%clk
0:00:36.7]} 27... Rg8 {[%clk 0:01:35.8]} 28. Bg3 {[%clk 0:00:36.1]} 28... Rgg6
{[%clk 0:01:30]} 29. Rhb1 {[%clk 0:00:33]} 29... Raf6 {[%clk 0:01:21.6]} 30. h4
{[%clk 0:00:31.3]} 30... b6 {[%clk 0:01:19.7]} 31. Kd3 {[%clk 0:00:30.8]} 31...
Re6 {[%clk 0:01:17.9]} 32. Rg1 {[%clk 0:00:28.3]} 32... Rg4 {[%clk 0:01:13.6]}
33. Bf4 {[%clk 0:00:21.7]} 33... Rxh4 {[%clk 0:01:11]} 34. Rg7 {[%clk
0:00:20.8]} 34... Rc6 {[%clk 0:01:06]} 35. Rag1 {[%clk 0:00:16.8]} 35... Nb2+
{[%clk 0:01:01.8]} 36. Kd2 {[%clk 0:00:15.3]} 36... Nxa4 {[%clk 0:01:01]} 37.
Rh7 {[%clk 0:00:15.7]} 37... Nc3 {[%clk 0:00:55.6]} 38. Rgg7 {[%clk 0:00:14]}
38... Nb5 {[%clk 0:00:52.7]} 39. Kd3 {[%clk 0:00:11.9]} 39... a5 {[%clk
0:00:51.2]} 40. Rg5 {[%clk 0:00:12.5]} 40... a4 {[%clk 0:00:38.1]} 41. Rxd5
{[%clk 0:00:12.2]} 41... a3 {[%clk 0:00:38.8]} 42. Rxb5 {[%clk 0:00:06.2]} 42...
a2 {[%clk 0:00:39.2]} 43. Bxc7 {[%clk 0:00:02]} 43... a1=Q {[%clk 0:00:35.5]}
44. Bxb6 {[%clk 0:00:01.7]} 44... Qf1+ {[%clk 0:00:33.4]} 0-1

[Event "Early-Titled-Tuesday-Blitz-July-09-2024"]
[Site "Chess.com"]
[Date "2024.07.09"]
[Round "5"]
[White "evgchess5"]
[Black "KubaGepard"]
[Result "1-0"]
[WhiteElo "2865"]
[BlackElo "2646"]
[TimeControl "180+1"]
[EndTime "8:58:15 PDT"]
[Termination "evgchess5 won by resignation"]

1. e4 {[%clk 0:03:00.9]} 1... e5 {[%clk 0:02:59.9]} 2. Nf3 {[%clk 0:03:00.4]}
2... Nc6 {[%clk 0:03:00.6]} 3. Bc4 {[%clk 0:03:00.5]} 3... Bc5 {[%clk
0:03:00.6]} 4. c3 {[%clk 0:03:00]} 4... Nf6 {[%clk 0:03:01.1]} 5. d3 {[%clk
0:03:00.1]} 5... O-O {[%clk 0:03:00.9]} 6. O-O {[%clk 0:02:59.7]} 6... a6 {[%clk
0:03:01]} 7. Bb3 {[%clk 0:02:59.1]} 7... d6 {[%clk 0:02:58.1]} 8. h3 {[%clk
0:02:58.5]} 8... h6 {[%clk 0:02:57.3]} 9. Be3 {[%clk 0:02:58]} 9... Ba7 {[%clk
0:02:48.5]} 10. Nbd2 {[%clk 0:02:57.8]} 10... d5 {[%clk 0:02:46]} 11. Bxa7
{[%clk 0:02:55.9]} 11... Rxa7 {[%clk 0:02:45.4]} 12. Re1 {[%clk 0:02:50.9]}
12... Re8 {[%clk 0:02:41.4]} 13. exd5 {[%clk 0:02:47.7]} 13... Nxd5 {[%clk
0:02:37.8]} 14. d4 {[%clk 0:02:47.6]} 14... Nf4 {[%clk 0:02:27]} 15. dxe5 {[%clk
0:02:40.2]} 15... Nd3 {[%clk 0:02:24.4]} 16. Re3 {[%clk 0:02:39.9]} 16... Ndxe5
{[%clk 0:02:16.9]} 17. Qe2 {[%clk 0:02:24.8]} 17... Nxf3+ {[%clk 0:02:04.9]} 18.
Nxf3 {[%clk 0:02:24.7]} 18... Rxe3 {[%clk 0:01:59.1]} 19. Qxe3 {[%clk
0:02:25.6]} 19... Ra8 {[%clk 0:01:54.5]} 20. Rd1 {[%clk 0:02:22.3]} 20... Qf8
{[%clk 0:01:50.7]} 21. Qf4 {[%clk 0:02:13.9]} 21... Qe7 {[%clk 0:01:41.3]} 22.
Re1 {[%clk 0:01:56]} 22... Be6 {[%clk 0:01:37.8]} 23. Bxe6 {[%clk 0:01:55.5]}
23... fxe6 {[%clk 0:01:37.9]} 24. Qe4 {[%clk 0:01:54.9]} 24... Re8 {[%clk
0:01:36.5]} 25. g3 {[%clk 0:01:54.2]} 25... Qf6 {[%clk 0:01:31.8]} 26. Kg2
{[%clk 0:01:53.9]} 26... e5 {[%clk 0:01:26.8]} 27. Qd5+ {[%clk 0:01:47.4]} 27...
Kh7 {[%clk 0:01:22.2]} 28. h4 {[%clk 0:01:47.1]} 28... Re7 {[%clk 0:01:18]} 29.
Nd2 {[%clk 0:01:41.8]} 29... Rf7 {[%clk 0:01:14.1]} 30. Ne4 {[%clk 0:01:34.7]}
30... Qg6 {[%clk 0:01:08.2]} 31. Qd1 {[%clk 0:01:27.2]} 31... Qf5 {[%clk
0:01:02.9]} 32. Qe2 {[%clk 0:01:23]} 32... Re7 {[%clk 0:00:53.2]} 33. Rd1 {[%clk
0:01:22.2]} 33... Rd7 {[%clk 0:00:51.6]} 34. Rd3 {[%clk 0:01:16.1]} 34... Rxd3
{[%clk 0:00:49.6]} 35. Qxd3 {[%clk 0:01:16.1]} 35... Kg8 {[%clk 0:00:42.1]} 36.
Qd5+ {[%clk 0:01:15.7]} 36... Qf7 {[%clk 0:00:40]} 37. Qxf7+ {[%clk 0:01:12.7]}
37... Kxf7 {[%clk 0:00:40.4]} 38. Nc5 {[%clk 0:01:13.4]} 38... Nd8 {[%clk
0:00:38.4]} 39. Kf3 {[%clk 0:01:13.5]} 39... Ke7 {[%clk 0:00:26.2]} 40. Ke4
{[%clk 0:01:12.2]} 40... Kd6 {[%clk 0:00:26.4]} 41. Nd3 {[%clk 0:01:12.3]} 41...
Nc6 {[%clk 0:00:25.5]} 42. b4 {[%clk 0:00:54.2]} 42... b6 {[%clk 0:00:25.6]} 43.
a4 {[%clk 0:00:52.8]} 43... b5 {[%clk 0:00:18.2]} 44. a5 {[%clk 0:00:47.6]}
44... Ne7 {[%clk 0:00:17.7]} 45. Nc5 {[%clk 0:00:45.3]} 45... Nd5 {[%clk
0:00:16.6]} 46. Kd3 {[%clk 0:00:45.5]} 46... Nf6 {[%clk 0:00:10.4]} 47. Nxa6
{[%clk 0:00:35.4]} 47... e4+ {[%clk 0:00:10.6]} 48. Kd4 {[%clk 0:00:35.1]} 48...
Ng4 {[%clk 0:00:09.8]} 49. Nc5 {[%clk 0:00:34.8]} 49... e3 {[%clk 0:00:06.9]}
50. fxe3 {[%clk 0:00:33.7]} 1-0

[Event "Early-Titled-Tuesday-Blitz-July-09-2024"]
[Site "Chess.com"]
[Date "2024.07.09"]
[Round "5"]
[White "Bilan_Danila"]
[Black "Andrei_Skvortsov"]
[Result "1/2-1/2"]
[WhiteElo "2596"]
[BlackElo "2801"]
[TimeControl "180+1"]
[EndTime "8:58:16 PDT"]
[Termination "Game drawn by repetition"]

1. d4 {[%clk 0:03:00.9]} 1... e6 {[%clk 0:02:57.5]} 2. Nf3 {[%clk 0:03:00.1]}
2... c5 {[%clk 0:02:57.4]} 3. e3 {[%clk 0:02:59.3]} 3... b6 {[%clk 0:02:56.3]}
4. c4 {[%clk 0:02:55.7]} 4... Bb7 {[%clk 0:02:56]} 5. Nc3 {[%clk 0:02:55.1]}
5... Nf6 {[%clk 0:02:56]} 6. Be2 {[%clk 0:02:51.4]} 6... cxd4 {[%clk 0:02:56.5]}
7. exd4 {[%clk 0:02:48.7]} 7... Bb4 {[%clk 0:02:57]} 8. O-O {[%clk 0:02:44.6]}
8... O-O {[%clk 0:02:54.2]} 9. Bg5 {[%clk 0:02:42.9]} 9... h6 {[%clk 0:02:53.6]}
10. Bh4 {[%clk 0:02:41.5]} 10... d5 {[%clk 0:02:54.2]} 11. Ne5 {[%clk
0:02:33.2]} 11... Be7 {[%clk 0:02:52.8]} 12. Bf3 {[%clk 0:02:22.1]} 12... Nbd7
{[%clk 0:02:46.4]} 13. cxd5 {[%clk 0:02:14.9]} 13... Nxd5 {[%clk 0:02:45.5]} 14.
Bxe7 {[%clk 0:01:59.1]} 14... Qxe7 {[%clk 0:02:43.1]} 15. Nxd5 {[%clk
0:01:55.8]} 15... Bxd5 {[%clk 0:02:37.4]} 16. Bxd5 {[%clk 0:01:54.6]} 16... exd5
{[%clk 0:02:38.3]} 17. Re1 {[%clk 0:01:46.7]} 17... Rfe8 {[%clk 0:02:30.9]} 18.
Qb3 {[%clk 0:01:30.7]} 18... Qd6 {[%clk 0:02:27]} 19. Nxd7 {[%clk 0:01:04.1]}
19... Qxd7 {[%clk 0:02:27.9]} 20. h3 {[%clk 0:01:02.8]} 20... Rac8 {[%clk
0:02:25.8]} 21. Qd3 {[%clk 0:00:50.1]} 21... Qd6 {[%clk 0:02:16.2]} 22. Rxe8+
{[%clk 0:00:45]} 22... Rxe8 {[%clk 0:02:17.1]} 23. Rc1 {[%clk 0:00:44.5]} 23...
g6 {[%clk 0:02:14.5]} 24. g3 {[%clk 0:00:41.4]} 24... Re4 {[%clk 0:02:11.6]} 25.
Rc8+ {[%clk 0:00:35.5]} 25... Kg7 {[%clk 0:02:11.4]} 26. Kg2 {[%clk 0:00:29.5]}
26... Qb4 {[%clk 0:02:06.7]} 27. Qa6 {[%clk 0:00:16.8]} 27... Qxd4 {[%clk
0:01:58.7]} 28. Rc2 {[%clk 0:00:11.7]} 28... Re7 {[%clk 0:01:57.5]} 29. Qc8
{[%clk 0:00:05.2]} 29... Qe4+ {[%clk 0:01:51.9]} 30. Kh2 {[%clk 0:00:05.6]}
30... Qf3 {[%clk 0:01:50.1]} 31. Qc3+ {[%clk 0:00:04.9]} 31... Qxc3 {[%clk
0:01:49.1]} 32. bxc3 {[%clk 0:00:05.8]} 32... Kf6 {[%clk 0:01:45.6]} 33. f4
{[%clk 0:00:05.3]} 33... Re1 {[%clk 0:01:44.9]} 34. Kg2 {[%clk 0:00:04.2]} 34...
Ke6 {[%clk 0:01:44.5]} 35. Kf3 {[%clk 0:00:04.3]} 35... Rh1 {[%clk 0:01:44.4]}
36. Kg4 {[%clk 0:00:04.3]} 36... h5+ {[%clk 0:01:43.7]} 37. Kh4 {[%clk
0:00:03.9]} 37... Kf6 {[%clk 0:01:38.7]} 38. Rd2 {[%clk 0:00:03.3]} 38... Rc1
{[%clk 0:01:38.4]} 39. Rxd5 {[%clk 0:00:03]} 39... Rxc3 {[%clk 0:01:38.1]} 40.
g4 {[%clk 0:00:01.6]} 40... hxg4 {[%clk 0:01:35.4]} 41. hxg4 {[%clk 0:00:02.5]}
41... Ra3 {[%clk 0:01:35.5]} 42. Rd2 {[%clk 0:00:03.1]} 42... Ra4 {[%clk
0:01:34.4]} 43. Kg3 {[%clk 0:00:02.7]} 43... Ke7 {[%clk 0:01:34.7]} 44. Re2+
{[%clk 0:00:02.9]} 44... Kd7 {[%clk 0:01:33.8]} 45. Rd2+ {[%clk 0:00:03.6]}
45... Ke8 {[%clk 0:01:34.2]} 46. Re2+ {[%clk 0:00:04.1]} 46... Kf8 {[%clk
0:01:34.7]} 47. Rc2 {[%clk 0:00:04.8]} 47... Kg7 {[%clk 0:01:34.9]} 48. Kf3
{[%clk 0:00:05.1]} 48... a6 {[%clk 0:01:33.8]} 49. Kg3 {[%clk 0:00:05.3]} 49...
b5 {[%clk 0:01:32.7]} 50. Re2 {[%clk 0:00:05.7]} 50... Rc4 {[%clk 0:01:32.8]}
51. Rd2 {[%clk 0:00:05.7]} 51... Kf6 {[%clk 0:01:32.5]} 52. Re2 {[%clk
0:00:05.6]} 52... a5 {[%clk 0:01:30.4]} 53. g5+ {[%clk 0:00:06.1]} 53... Kg7
{[%clk 0:01:30.3]} 54. Kg4 {[%clk 0:00:06.5]} 54... Rc3 {[%clk 0:01:30.4]} 55.
Re5 {[%clk 0:00:06.1]} 55... Ra3 {[%clk 0:01:29.2]} 56. Rxb5 {[%clk 0:00:06.2]}
56... Rxa2 {[%clk 0:01:29.9]} 57. Rb8 {[%clk 0:00:05.5]} 57... Ra1 {[%clk
0:01:28]} 58. Ra8 {[%clk 0:00:05.9]} 58... Ra3 {[%clk 0:01:25.9]} 59. Ra7 {[%clk
0:00:05.7]} 59... Kf8 {[%clk 0:01:26]} 60. Ra6 {[%clk 0:00:04]} 60... a4 {[%clk
0:01:24.8]} 61. f5 {[%clk 0:00:04.2]} 61... gxf5+ {[%clk 0:01:24.7]} 62. Kxf5
{[%clk 0:00:05.1]} 62... Kg7 {[%clk 0:01:23.8]} 63. Ra7 {[%clk 0:00:05]} 63...
Ra1 {[%clk 0:01:19.3]} 64. g6 {[%clk 0:00:04.1]} 64... Rf1+ {[%clk 0:01:19.6]}
65. Kg5 {[%clk 0:00:04.5]} 65... Rg1+ {[%clk 0:01:20]} 66. Kf5 {[%clk
0:00:02.7]} 66... Re1 {[%clk 0:01:20.4]} 67. Rxf7+ {[%clk 0:00:01.9]} 67... Kg8
{[%clk 0:01:20.6]} 68. Ra7 {[%clk 0:00:02.8]} 68... Rf1+ {[%clk 0:01:20.8]} 69.
Kg5 {[%clk 0:00:03.2]} 69... Rg1+ {[%clk 0:01:21.3]} 70. Kf6 {[%clk 0:00:03.8]}
70... Rf1+ {[%clk 0:01:21.2]} 71. Kg5 {[%clk 0:00:04.4]} 71... Rg1+ {[%clk
0:01:20.5]} 72. Kf6 {[%clk 0:00:04.9]} 72... Rf1+ {[%clk 0:01:20.8]} 73. Kg5
{[%clk 0:00:05.4]} 1/2-1/2

[Event "Early-Titled-Tuesday-Blitz-July-09-2024"]
[Site "Chess.com"]
[Date "2024.07.09"]
[Round "5"]
[White "betta2004"]
[Black "KVAIDAN"]
[Result "1-0"]
[WhiteElo "2515"]
[BlackElo "2323"]
[TimeControl "180+1"]
[EndTime "8:58:16 PDT"]
[Termination "betta2004 won by checkmate"]

1. Nf3 {[%clk 0:02:45.8]} 1... f5 {[%clk 0:02:59.5]} 2. b3 {[%clk 0:02:44.1]}
2... Nf6 {[%clk 0:02:59.5]} 3. Bb2 {[%clk 0:02:38.4]} 3... d6 {[%clk 0:02:59.8]}
4. d4 {[%clk 0:02:35.8]} 4... e6 {[%clk 0:02:59.7]} 5. e3 {[%clk 0:02:33.8]}
5... Be7 {[%clk 0:02:59.7]} 6. c4 {[%clk 0:02:30.2]} 6... O-O {[%clk 0:03:00.6]}
7. Bd3 {[%clk 0:02:29.3]} 7... b6 {[%clk 0:03:00.4]} 8. Nbd2 {[%clk 0:02:25.7]}
8... Bb7 {[%clk 0:03:00.1]} 9. Qc2 {[%clk 0:02:26.3]} 9... a5 {[%clk 0:02:55.8]}
10. e4 {[%clk 0:02:23.9]} 10... fxe4 {[%clk 0:02:49.7]} 11. Nxe4 {[%clk
0:02:24.8]} 11... Nxe4 {[%clk 0:02:49.9]} 12. Bxe4 {[%clk 0:02:25.7]} 12... Bxe4
{[%clk 0:02:38.4]} 13. Qxe4 {[%clk 0:02:26.6]} 13... Nd7 {[%clk 0:02:38.6]} 14.
Qxe6+ {[%clk 0:02:23.2]} 14... Kh8 {[%clk 0:02:38.5]} 15. O-O {[%clk 0:02:21.3]}
15... Rf6 {[%clk 0:02:35.1]} 16. Qe2 {[%clk 0:02:15.1]} 16... Rg6 {[%clk
0:02:32.4]} 17. Rfe1 {[%clk 0:02:14.2]} 17... Bf6 {[%clk 0:02:31.4]} 18. d5
{[%clk 0:02:11.8]} 18... a4 {[%clk 0:02:17.8]} 19. Nd4 {[%clk 0:02:05]} 19... a3
{[%clk 0:02:04.2]} 20. Bc3 {[%clk 0:02:03.5]} 20... Be5 {[%clk 0:01:58.8]} 21.
Ne6 {[%clk 0:01:49.6]} 21... Qh4 {[%clk 0:01:42.7]} 22. Bxe5 {[%clk 0:01:49.1]}
22... Nxe5 {[%clk 0:01:43]} 23. f4 {[%clk 0:01:39.2]} 23... Ng4 {[%clk
0:01:23.2]} 24. h3 {[%clk 0:01:39.1]} 24... Nf6 {[%clk 0:01:23]} 25. Qf2 {[%clk
0:01:32]} 25... Qxh3 {[%clk 0:01:19]} 26. Ng5 {[%clk 0:01:23]} 26... Qf5 {[%clk
0:01:08.3]} 27. Re7 {[%clk 0:01:16.6]} 27... Rf8 {[%clk 0:01:03]} 28. Qh4 {[%clk
0:01:13.5]} 28... Rh6 {[%clk 0:00:50.6]} 29. Qg3 {[%clk 0:01:01]} 29... Rg6
{[%clk 0:00:49.6]} 30. Rae1 {[%clk 0:00:58.5]} 30... Nh5 {[%clk 0:00:47.1]} 31.
Qh4 {[%clk 0:00:40.8]} 31... Qxf4 {[%clk 0:00:46]} 32. Rf7 {[%clk 0:00:21.2]}
32... Rf6 {[%clk 0:00:20.6]} 33. Qxh5 {[%clk 0:00:07.7]} 33... h6 {[%clk
0:00:18.6]} 34. Rxf8+ {[%clk 0:00:07.4]} 34... Rxf8 {[%clk 0:00:18.4]} 35. Nf3
{[%clk 0:00:08]} 35... Qd2 {[%clk 0:00:17.8]} 36. Nxd2 {[%clk 0:00:08.1]} 36...
Rf6 {[%clk 0:00:17.4]} 37. Re8+ {[%clk 0:00:08.3]} 37... Kh7 {[%clk 0:00:18]}
38. Ne4 {[%clk 0:00:08.8]} 38... Rf4 {[%clk 0:00:17.5]} 39. Re7 {[%clk 0:00:08]}
39... b5 {[%clk 0:00:15.6]} 40. Ng5+ {[%clk 0:00:05]} 40... Kg8 {[%clk 0:00:13]}
41. Re8+ {[%clk 0:00:05.6]} 41... Rf8 {[%clk 0:00:12]} 42. Qf7+ {[%clk
0:00:06.5]} 42... Kh8 {[%clk 0:00:11.4]} 43. Rxf8# {[%clk 0:00:07.4]} 1-0

[Event "Early-Titled-Tuesday-Blitz-July-09-2024"]
[Site "Chess.com"]
[Date "2024.07.09"]
[Round "5"]
[White "adreyd"]
[Black "Chernov_Alexander_A"]
[Result "1-0"]
[WhiteElo "2422"]
[BlackElo "2267"]
[TimeControl "180+1"]
[EndTime "8:58:19 PDT"]
[Termination "adreyd won on time"]

1. d4 {[%clk 0:03:00.9]} 1... Nf6 {[%clk 0:02:58.8]} 2. Nf3 {[%clk 0:02:56.8]}
2... e6 {[%clk 0:02:57.8]} 3. Bg5 {[%clk 0:02:56.9]} 3... c5 {[%clk 0:02:50.4]}
4. e4 {[%clk 0:02:40.8]} 4... cxd4 {[%clk 0:02:35.5]} 5. e5 {[%clk 0:02:35.5]}
5... h6 {[%clk 0:02:34.9]} 6. Bh4 {[%clk 0:02:02.1]} 6... g5 {[%clk 0:02:34]} 7.
Bg3 {[%clk 0:02:00.9]} 7... Qa5+ {[%clk 0:02:23.7]} 8. Qd2 {[%clk 0:01:56.8]}
8... Qxd2+ {[%clk 0:02:21.1]} 9. Nbxd2 {[%clk 0:01:57.7]} 9... Nh5 {[%clk
0:02:04.3]} 10. Nxd4 {[%clk 0:01:54.7]} 10... Nxg3 {[%clk 0:01:44.3]} 11. hxg3
{[%clk 0:01:55.6]} 11... Nc6 {[%clk 0:01:44.1]} 12. Nxc6 {[%clk 0:01:38.1]}
12... bxc6 {[%clk 0:01:05.3]} 13. Ne4 {[%clk 0:01:37.7]} 13... Bg7 {[%clk
0:01:04.5]} 14. f4 {[%clk 0:01:29.1]} 14... Ke7 {[%clk 0:01:01]} 15. O-O-O
{[%clk 0:01:22.3]} 15... a5 {[%clk 0:00:51.2]} 16. a4 {[%clk 0:01:13.4]} 16...
Ba6 {[%clk 0:00:44.6]} 17. Bxa6 {[%clk 0:01:12.1]} 17... Rxa6 {[%clk 0:00:44.2]}
18. Rd3 {[%clk 0:00:54.9]} 18... Ra7 {[%clk 0:00:40]} 19. Rhd1 {[%clk
0:00:53.1]} 19... Rb8 {[%clk 0:00:25.5]} 20. c3 {[%clk 0:00:46.2]} 20... Rab7
{[%clk 0:00:16.8]} 21. R1d2 {[%clk 0:00:37.1]} 21... Rc7 {[%clk 0:00:15.6]} 22.
Nc5 {[%clk 0:00:35.6]} 22... Ra7 {[%clk 0:00:15.3]} 23. Rxd7+ {[%clk 0:00:29]}
23... Rxd7 {[%clk 0:00:14.4]} 24. Rxd7+ {[%clk 0:00:29.9]} 24... Ke8 {[%clk
0:00:13.4]} 25. Ra7 {[%clk 0:00:29.7]} 25... h5 {[%clk 0:00:10.8]} 26. Ne4
{[%clk 0:00:26.2]} 26... gxf4 {[%clk 0:00:04.7]} 27. Nd6+ {[%clk 0:00:24.8]}
27... Kf8 {[%clk 0:00:04.7]} 28. Rxf7+ {[%clk 0:00:24.7]} 28... Kg8 {[%clk
0:00:04.8]} 29. gxf4 {[%clk 0:00:24.9]} 29... h4 {[%clk 0:00:04.4]} 30. Re7
{[%clk 0:00:19.8]} 30... Rf8 {[%clk 0:00:02.9]} 31. Re8 {[%clk 0:00:17.2]} 31...
Kh7 {[%clk 0:00:02]} 32. Rxf8 {[%clk 0:00:16.5]} 32... Bxf8 {[%clk 0:00:01.4]}
33. Kd2 {[%clk 0:00:10.9]} 33... Kg6 {[%clk 0:00:01.7]} 34. Ke3 {[%clk 0:00:11]}
34... Kh5 {[%clk 0:00:01.5]} 35. Kf3 {[%clk 0:00:11.1]} 35... Kh6 {[%clk
0:00:01]} 36. b4 {[%clk 0:00:10.3]} 36... Be7 {[%clk 0:00:01.1]} 37. bxa5 {[%clk
0:00:10.1]} 37... Bd8 {[%clk 0:00:01.1]} 38. a6 {[%clk 0:00:10]} 38... Bb6
{[%clk 0:00:01.4]} 39. Nc8 {[%clk 0:00:10.2]} 1-0